bitfinex-derivatives/quotes_BTCF0:USTF0_20241104
["timestamp","ask_amount","ask_price","bid_price","bid_amount"]
[1730678401091,0.002,68804.0,68803.0,0.17690451]
[1730678401490,0.002,68804.0,68803.0,0.11886208]
[1730678402501,0.3608,68811.0,68803.0,0.22768566]
[1730678402696,0.3608,68811.0,68809.0,0.07252175]
[1730678404099,0.3728,68811.0,68809.0,0.07352175]
[1730678404309,0.3728,68811.0,68809.0,0.001]
[1730678404495,0.3728,68811.0,68809.0,0.07352175]
[1730678404891,0.3608,68811.0,68808.0,0.07252175]
[1730678405097,0.3738,68811.0,68809.0,0.001]
[1730678405403,0.3738,68811.0,68809.0,0.07352175]
[1730678405603,0.3768,68811.0,68810.0,0.07252175]
[1730678406197,0.3768,68811.0,68810.0,0.09081337]
[1730678406399,0.3768,68811.0,68809.0,0.001]
[1730678406400,0.3768,68811.0,68809.0,0.0724901]
[1730678406602,0.3808,68811.0,68810.0,0.0724901]
[1730678406801,0.3808,68811.0,68809.0,0.0734901]
[1730678407199,0.3808,68811.0,68809.0,0.001]
[1730678408003,0.3768,68811.0,68810.0,0.001]
[1730678408716,0.3808,68811.0,68810.0,0.001]
[1730678409306,0.3868,68811.0,68810.0,0.001]
[1730678409506,0.3748,68811.0,68806.0,0.0724901]
[1730678409803,0.3748,68811.0,68809.0,0.001]
[1730678410007,0.3818,68811.0,68809.0,0.001]
[1730678410402,0.3798,68811.0,68810.0,0.001]
[1730678411106,0.3678,68811.0,68806.0,0.0724901]
[1730678411410,0.3798,68811.0,68809.0,0.001]
[1730678411813,0.3728,68811.0,68809.0,0.001]
[1730678412013,0.3868,68811.0,68809.0,0.001]
[1730678412404,0.3728,68811.0,68809.0,0.001]
[1730678412601,0.3798,68811.0,68809.0,0.001]
[1730678412796,0.3798,68811.0,68810.0,0.001]
[1730678413506,0.3798,68811.0,68805.0,0.0724901]
[1730678413711,0.3798,68811.0,68809.0,0.001]
[1730678414509,0.3798,68811.0,68810.0,0.001]
[1730678415506,0.3788,68811.0,68810.0,0.05902423]
[1730678416014,0.3728,68811.0,68810.0,0.05902423]
[1730678416217,0.3798,68811.0,68810.0,0.05902423]
[1730678416518,0.40138077,68811.0,68810.0,0.05802423]
[1730678416814,0.40138077,68811.0,68809.0,0.001]
[1730678417021,0.0322,68810.0,68809.0,0.001]
[1730678417410,0.0322,68810.0,68805.0,0.0724901]
[1730678417613,0.063,68809.0,68805.0,0.0724901]
[1730678418609,0.3608,68808.0,68805.0,0.0724901]
[1730678418808,0.3608,68808.0,68783.0,0.3608]
[1730678418809,0.10768,68807.0,68788.0,0.0870261]
[1730678419017,0.3608,68790.0,68789.0,0.09184676]
[1730678419524,0.3608,68790.0,68783.0,0.4478261]
[1730678419709,0.3608,68790.0,68784.0,0.09064982]
[1730678419710,0.0318,68789.0,68784.0,0.09064982]
[1730678420016,0.0318,68789.0,68785.0,0.09064982]
[1730678420216,0.0318,68789.0,68786.0,0.09064982]
[1730678420403,0.0318,68789.0,68787.0,0.09064982]
[1730678420604,0.0318,68789.0,68788.0,0.09061222]
[1730678421008,0.0328,68789.0,68788.0,0.09061222]
[1730678421407,0.0328,68789.0,68784.0,0.007]
[1730678421607,0.0328,68789.0,68785.0,0.09058031]
[1730678421819,0.0328,68789.0,68786.0,0.09058031]
[1730678422010,0.0328,68789.0,68784.0,0.007]
[1730678422217,0.0328,68789.0,68785.0,0.09059936]
[1730678422413,0.0328,68789.0,68786.0,0.09059936]
[1730678422619,0.0348,68789.0,68784.0,0.007]
[1730678422817,0.0348,68789.0,68785.0,0.09057653]
[1730678423022,0.0318,68789.0,68788.0,0.004]
[1730678423817,0.3608,68790.0,68783.0,0.38333699]
[1730678424010,0.001,68789.0,68784.0,0.18457759]
[1730678424210,0.001,68789.0,68785.0,0.17757759]
[1730678424426,0.001,68789.0,68786.0,0.09055149]
[1730678424722,0.3608,68796.0,68788.0,0.004]
[1730678424921,0.002,68789.0,68788.0,0.004]
[1730678425118,0.002,68789.0,68788.0,0.09441341]
[1730678425312,0.3608,68796.0,68788.0,0.09441341]
[1730678425509,0.3608,68796.0,68788.0,0.004]
[1730678426016,0.3608,68796.0,68788.0,0.005]
[1730678426320,0.001,68789.0,68788.0,0.001]
[1730678426519,0.001,68789.0,68788.0,0.09142202]
[1730678427119,0.3608,68796.0,68788.0,0.09142202]
[1730678427424,0.3608,68796.0,68783.0,0.47112309]
[1730678427721,0.3618,68796.0,68785.0,0.0870261]
[1730678427914,0.3618,68796.0,68788.0,0.004]
[1730678428223,0.3608,68796.0,68789.0,0.09044542]
[1730678428426,0.3608,68796.0,68790.0,0.15394542]
[1730678428716,0.3608,68796.0,68791.0,0.09044542]
[1730678428922,0.3608,68796.0,68790.0,0.0635]
[1730678429122,0.3618,68796.0,68791.0,0.09034833]
[1730678429318,0.3628,68796.0,68790.0,0.0635]
[1730678429524,0.3638,68796.0,68791.0,0.09035703]
[1730678429717,0.3638,68796.0,68792.0,0.09035703]
[1730678429913,0.3638,68796.0,68790.0,0.0635]
[1730678430220,0.3628,68796.0,68794.0,0.065434]
[1730678430419,0.3658,68796.0,68790.0,0.0635]
[1730678430615,0.065437,68792.0,68791.0,0.09035922]
[1730678430815,0.065442,68787.0,68785.0,0.065444]
[1730678431128,0.3638,68796.0,68784.0,0.031]
[1730678431129,0.3608,68790.0,68784.0,0.031]
[1730678431424,0.065444,68785.0,68784.0,0.031]
[1730678433429,0.066444,68785.0,68784.0,0.038]
[1730678434624,0.066444,68785.0,68784.0,0.04]
[1730678434822,0.066444,68785.0,68784.0,0.009]
[1730678438214,0.001,68785.0,68784.0,0.009]
[1730678438421,0.001,68785.0,68784.0,0.074445]
[1730678441222,0.3608,68789.0,68788.0,0.065441]
[1730678441522,0.3608,68790.0,68788.0,0.065441]
[1730678442122,0.426239,68790.0,68788.0,0.065441]
[1730678442623,0.002,68789.0,68788.0,0.069441]
[1730678443124,0.002,68789.0,68788.0,0.065441]
[1730678443325,0.06744,68789.0,68788.0,0.069441]
[1730678444129,0.06544,68789.0,68788.0,0.004]
[1730678444836,0.06744,68789.0,68788.0,0.004]
[1730678445130,0.002,68789.0,68788.0,0.070441]
[1730678446634,0.002,68789.0,68788.0,0.16084522]
[1730678446823,0.426227,68803.0,68789.0,0.06544]
[1730678447023,0.426227,68803.0,68790.0,0.09040422]
[1730678447229,0.426227,68803.0,68791.0,0.17743032]
[1730678447425,0.426227,68803.0,68792.0,0.20883032]
[1730678447623,0.426227,68803.0,68801.0,0.065428]
[1730678448031,0.435227,68803.0,68801.0,0.065428]
[1730678448435,0.426227,68803.0,68801.0,0.065428]
[1730678448634,0.432227,68803.0,68801.0,0.065428]
[1730678449333,0.440227,68803.0,68801.0,0.065428]
[1730678450231,0.3728,68803.0,68802.0,0.065427]
[1730678450625,0.3668,68803.0,68802.0,0.065427]
[1730678450941,0.3728,68803.0,68802.0,0.065427]
[1730678451438,0.3668,68803.0,68802.0,0.065427]
[1730678451736,0.3728,68803.0,68802.0,0.065427]
[1730678451934,0.3668,68803.0,68802.0,0.065427]
[1730678452127,0.3728,68803.0,68802.0,0.066427]
[1730678453645,0.3728,68803.0,68802.0,0.08966552]
[1730678453838,0.3728,68803.0,68802.0,0.066427]
[1730678455933,0.438227,68803.0,68802.0,0.001]
[1730678456332,0.80884,68803.0,68789.0,0.07257546]
[1730678456526,0.80884,68803.0,68783.0,0.10756]
[1730678456527,0.3608,68790.0,68788.0,0.065441]
[1730678456730,0.065441,68788.0,68785.0,0.07257546]
[1730678456943,0.065442,68787.0,68786.0,0.02252612]
[1730678457240,0.097442,68787.0,68786.0,0.02252612]
[1730678457628,0.065443,68786.0,68781.0,0.07475606]
[1730678457829,0.3608,68784.0,68783.0,0.065445]
[1730678458029,0.065446,68782.0,68781.0,0.0021806]
[1730678458631,0.3608,68784.0,68776.0,0.07257546]
[1730678458836,0.3608,68777.0,68769.0,0.07257546]
[1730678459037,0.3608,68777.0,68768.0,0.07257546]
[1730678459038,0.065459,68769.0,68768.0,0.07257546]
[1730678459238,0.3608,68770.0,68765.0,0.07257546]
[1730678459442,0.3608,68770.0,68764.0,0.07257546]
[1730678459650,0.065463,68765.0,68763.0,0.07257546]
[1730678460346,0.065463,68765.0,68762.0,0.10357546]
[1730678460737,0.065463,68765.0,68762.0,0.031]
[1730678461136,0.032,68769.0,68760.0,0.06657546]
[1730678461137,0.3608,68764.0,68760.0,0.06657546]
[1730678461336,0.3608,68764.0,68751.0,0.065476]
[1730678461540,0.3608,68764.0,68748.0,0.00218166]
[1730678461541,0.3608,68756.0,68748.0,0.00218166]
[1730678461758,0.065478,68749.0,68748.0,0.00218166]
[1730678462059,0.065474,68754.0,68750.0,0.065476]
[1730678462453,0.065475,68753.0,68750.0,0.065476]
[1730678462648,0.10756,68754.0,68748.0,0.00218166]
[1730678462868,0.10756,68754.0,68753.0,0.065474]
[1730678463250,0.173033,68754.0,68753.0,0.065474]
[1730678463469,0.065476,68751.0,68748.0,0.00218166]
[1730678463665,0.065476,68751.0,68750.0,0.007]
[1730678464163,0.426276,68751.0,68750.0,0.007]
[1730678464356,0.426276,68751.0,68729.0,0.065497]
[1730678464357,0.065494,68732.0,68729.0,0.065497]
[1730678464563,0.3608,68730.0,68729.0,0.065497]
[1730678466064,0.426294,68732.0,68731.0,0.065495]
[1730678466262,0.001,68730.0,68729.0,0.076497]
[1730678466465,0.10756,68735.0,68733.0,0.065493]
[1730678466652,0.10756,68735.0,68734.0,0.065492]
[1730678466858,0.065491,68736.0,68729.0,0.011]
[1730678467055,0.3608,68745.0,68729.0,0.011]
[1730678467457,0.1076,68744.0,68730.0,0.065496]
[1730678467665,0.1076,68744.0,68743.0,0.065484]
[1730678467970,0.53528201,68745.0,68744.0,0.065483]
[1730678468172,0.533882,68745.0,68744.0,0.065483]
[1730678468358,0.3608,68745.0,68744.0,0.065483]
[1730678469169,0.426282,68745.0,68744.0,0.065483]
[1730678469667,0.426282,68745.0,68725.0,0.02322252]
[1730678469668,0.3638,68745.0,68725.0,0.02322252]
[1730678469977,0.3608,68731.0,68730.0,0.065496]
[1730678472375,0.3668,68731.0,68730.0,0.066496]
[1730678472868,0.3688,68731.0,68730.0,0.066496]
[1730678473272,0.002,68731.0,68730.0,0.065496]
[1730678473779,0.3608,68738.0,68730.0,0.501976]
[1730678474076,0.3608,68738.0,68732.0,0.065494]
[1730678474272,0.3608,68738.0,68729.0,0.065497]
[1730678474579,0.065492,68735.0,68734.0,0.065491]
[1730678474982,0.3608,68738.0,68728.0,0.13983906]
[1730678475271,0.3608,68738.0,68737.0,0.065489]
[1730678475272,0.426288,68738.0,68737.0,0.065489]
[1730678475668,0.429288,68738.0,68737.0,0.065489]
[1730678476673,0.3638,68738.0,68737.0,0.065489]
[1730678476879,0.3648,68738.0,68737.0,0.065489]
[1730678477787,0.3648,68738.0,68732.0,0.065493]
[1730678477966,0.3648,68738.0,68733.0,0.065493]
[1730678477967,0.065492,68735.0,68733.0,0.065493]
[1730678478165,0.065492,68734.0,68733.0,0.065493]
[1730678479677,0.065492,68734.0,68733.0,0.068493]
[1730678480164,0.067492,68734.0,68733.0,0.065493]
[1730678480768,0.067492,68734.0,68730.0,0.02338358]
[1730678480769,0.065495,68731.0,68730.0,0.02338358]
[1730678480969,0.065495,68731.0,68730.0,0.065496]
[1730678481277,0.065501,68725.0,68724.0,0.0321]
[1730678482067,0.065505,68721.0,68720.0,0.065505]
[1730678483579,0.065505,68721.0,68720.0,0.066505]
[1730678484873,0.001,68721.0,68720.0,0.065506]
[1730678485079,0.004,68721.0,68720.0,0.065506]
[1730678486471,0.065502,68724.0,68723.0,0.065503]
[1730678487678,0.13983906,68735.0,68723.0,0.065503]
[1730678487679,0.065492,68734.0,68725.0,0.065501]
[1730678487879,0.065492,68734.0,68728.0,0.065498]
[1730678488175,0.065492,68734.0,68733.0,0.065493]
[1730678488367,0.065489,68738.0,68736.0,0.06549]
[1730678488566,0.065489,68738.0,68737.0,0.065489]
[1730678488873,0.096586,68741.0,68740.0,0.065486]
[1730678489070,0.065486,68741.0,68740.0,0.065486]
[1730678489479,0.065486,68741.0,68740.0,0.12341936]
[1730678490079,0.072486,68741.0,68740.0,0.12441936]
[1730678491193,0.007,68741.0,68740.0,0.066486]
[1730678491377,0.007,68741.0,68740.0,0.13901008]
[1730678491683,0.015,68741.0,68740.0,0.1590028]
[1730678492075,0.015,68741.0,68740.0,0.29884186]
[1730678492281,0.015,68741.0,68740.0,0.73528186]
[1730678492789,0.015,68741.0,68740.0,0.1590028]
[1730678493785,0.015,68741.0,68740.0,0.1610028]
[1730678493786,0.008,68741.0,68740.0,0.1610028]
[1730678493977,0.065485,68742.0,68740.0,0.1610028]
[1730678493978,0.065485,68742.0,68740.0,0.0955168]
[1730678494284,0.065485,68742.0,68741.0,0.2451112]
[1730678494478,0.065485,68742.0,68741.0,0.1580028]
[1730678494780,0.13983906,68747.0,68746.0,0.06548]
[1730678494781,0.06548,68747.0,68746.0,0.06548]
[1730678494985,0.06548,68747.0,68746.0,0.13806679]
[1730678495297,0.06548,68747.0,68746.0,0.06548]
[1730678495582,0.13983906,68747.0,68743.0,0.07258679]
[1730678495792,0.13983906,68747.0,68742.0,0.05806872]
[1730678495793,0.426283,68744.0,68742.0,0.05806872]
[1730678495987,0.26982306,68743.0,68741.0,0.05806872]
[1730678496195,0.065485,68742.0,68741.0,0.05806872]
[1730678496487,0.065486,68741.0,68740.0,0.003]
[1730678497075,0.065489,68737.0,68736.0,0.07258679]
[1730678497274,0.06549,68736.0,68735.0,0.07258679]
[1730678497483,0.06549,68736.0,68735.0,0.16484484]
[1730678497877,0.06549,68736.0,68731.0,0.07258679]
[1730678497878,0.065494,68732.0,68731.0,0.07258679]
[1730678498182,0.065498,68728.0,68726.0,0.07258679]
[1730678498377,0.50063906,68732.0,68724.0,0.07258679]
[1730678498378,0.3608,68730.0,68724.0,0.07258679]
[1730678498581,0.3608,68730.0,68712.0,0.0306]
[1730678498582,0.3608,68725.0,68718.0,0.07258679]
[1730678498771,0.3608,68719.0,68718.0,0.07258679]
[1730678498975,0.426306,68719.0,68718.0,0.16599064]
[1730678499484,0.426306,68719.0,68717.0,0.07264615]
[1730678499485,0.065507,68718.0,68717.0,0.07264615]
[1730678499688,0.065507,68718.0,68717.0,0.16582382]
[1730678499892,0.3608,68719.0,68717.0,0.16587563]
[1730678500079,0.065507,68718.0,68717.0,0.07264615]
[1730678500280,0.065507,68718.0,68717.0,0.16580449]
[1730678500490,0.065507,68718.0,68714.0,0.065511]
[1730678500491,0.065508,68717.0,68716.0,0.07264615]
[1730678500790,0.065508,68717.0,68716.0,0.16582694]
[1730678501192,0.3608,68719.0,68718.0,0.065507]
[1730678501396,0.065501,68725.0,68721.0,0.065504]
[1730678501689,0.065501,68725.0,68721.0,0.13806974]
[1730678502391,0.4696,68728.0,68721.0,0.13806974]
[1730678502585,0.065502,68724.0,68721.0,0.13806974]
[1730678502989,0.065503,68723.0,68721.0,0.068504]
[1730678503688,0.065503,68723.0,68721.0,0.069504]
[1730678504298,0.3678,68728.0,68721.0,0.001]
[1730678504299,0.065504,68722.0,68721.0,0.001]
[1730678504486,0.426304,68722.0,68721.0,0.001]
[1730678504996,0.065504,68722.0,68721.0,0.001]
[1730678505199,0.065505,68721.0,68717.0,0.09549343]
[1730678505383,0.065505,68721.0,68717.0,0.13807374]
[1730678505702,0.065505,68721.0,68717.0,0.065508]
[1730678505886,0.065505,68721.0,68718.0,0.07256574]
[1730678506087,0.065505,68721.0,68717.0,0.13807374]
[1730678506282,0.068505,68721.0,68717.0,0.13807374]
[1730678507586,0.071505,68721.0,68717.0,0.13807374]
[1730678507787,0.071505,68721.0,68720.0,0.065506]
[1730678507788,0.006,68721.0,68720.0,0.065506]
[1730678507985,0.007,68721.0,68720.0,0.49887174]
[1730678508198,0.004,68721.0,68720.0,0.51910545]
[1730678508393,0.005,68721.0,68720.0,0.65894451]
[1730678508590,0.065495,68731.0,68729.0,0.065496]
[1730678509301,0.3608,68735.0,68732.0,0.065494]
[1730678509495,0.3608,68735.0,68727.0,0.07248568]
[1730678509693,0.3608,68735.0,68733.0,0.065493]
[1730678509997,0.426292,68735.0,68733.0,0.065493]
[1730678510510,0.3608,68735.0,68734.0,0.065492]
[1730678511397,0.427569,68738.0,68732.0,0.065494]
[1730678511596,0.3608,68738.0,68737.0,0.065489]
[1730678511799,0.065484,68743.0,68741.0,0.065485]
[1730678512794,0.55572175,68748.0,68737.0,0.001]
[1730678513005,0.065488,68738.0,68737.0,0.001]
[1730678513194,0.065488,68738.0,68736.0,0.06549]
[1730678513602,0.065488,68738.0,68733.0,0.10468568]
[1730678513805,0.065488,68738.0,68737.0,0.065489]
[1730678514507,0.065491,68736.0,68733.0,0.10468568]
[1730678514801,0.065492,68734.0,68733.0,0.097693]
[1730678514993,0.009,68738.0,68737.0,0.001]
[1730678514994,0.074488,68738.0,68737.0,0.001]
[1730678515191,0.21432706,68738.0,68737.0,0.001]
[1730678515594,0.21432706,68738.0,68730.0,0.07248568]
[1730678515595,0.065495,68731.0,68730.0,0.07248568]
[1730678516196,0.065495,68731.0,68729.0,0.13798268]
[1730678516391,0.065495,68731.0,68730.0,0.07248568]
[1730678516592,0.065495,68731.0,68730.0,0.16470193]
[1730678516797,0.065495,68731.0,68729.0,0.13798268]
[1730678516998,0.068495,68731.0,68730.0,0.07248568]
[1730678517307,0.068495,68731.0,68729.0,0.065497]
[1730678517308,0.068495,68731.0,68729.0,0.13798268]
[1730678517496,0.068495,68731.0,68730.0,0.07248568]
[1730678518092,0.068495,68731.0,68729.0,0.07248568]
[1730678518409,0.067495,68731.0,68730.0,0.13798168]
[1730678518604,0.068495,68731.0,68730.0,0.15767304]
[1730678518906,0.001,68731.0,68730.0,0.15767304]
[1730678519207,0.003,68731.0,68730.0,0.15767304]
[1730678520111,0.003,68731.0,68730.0,0.2975121]
[1730678520307,0.0309,68749.0,68730.0,0.2975121]
[1730678520308,0.06548,68747.0,68746.0,0.065479]
[1730678520509,0.0309,68749.0,68743.0,0.065484]
[1730678520697,0.065478,68749.0,68748.0,0.065479]
[1730678521598,0.065475,68753.0,68744.0,0.0326]
[1730678521801,0.065472,68756.0,68748.0,0.13983906]
[1730678522106,0.065472,68756.0,68755.0,0.065472]
[1730678522514,0.065467,68760.0,68757.0,0.065469]
[1730678522804,0.065469,68758.0,68757.0,0.065469]
[1730678523395,0.05566729,68762.0,68750.0,0.07241241]
[1730678523396,0.065472,68756.0,68753.0,0.065474]
[1730678523908,0.065472,68756.0,68751.0,0.0318]
[1730678523909,0.065472,68756.0,68755.0,0.065472]
[1730678525905,0.3608,68757.0,68744.0,0.05602141]
[1730678526114,0.20532106,68745.0,68744.0,0.065483]
[1730678526406,0.13983906,68750.0,68745.0,0.065481]
[1730678527207,0.06548,68747.0,68737.0,0.10351241]
[1730678528315,0.06548,68747.0,68745.0,0.065481]
[1730678529011,0.3608,68753.0,68737.0,0.46431241]
[1730678529220,0.1074,68761.0,68750.0,0.13983906]
[1730678529419,0.06547,68758.0,68757.0,0.06547]
[1730678529915,0.41862883,68762.0,68752.0,0.0306]
[1730678529916,0.39508,68762.0,68755.0,0.13983906]
[1730678530102,0.459266,68762.0,68761.0,0.065466]
[1730678530305,0.3608,68762.0,68761.0,0.065466]
[1730678530702,0.3608,68762.0,68761.0,0.20530506]
[1730678531503,0.3748,68762.0,68761.0,0.20630506]
[1730678531709,0.3748,68762.0,68761.0,0.066466]
[1730678532814,0.028,68762.0,68761.0,0.067466]
[1730678533119,0.028,68762.0,68761.0,0.428266]
[1730678535317,0.028,68762.0,68761.0,0.864546]
[1730678535617,0.028,68762.0,68761.0,0.894546]
[1730678536209,0.028,68762.0,68761.0,0.458266]
[1730678536809,0.028,68762.0,68761.0,0.428266]
[1730678537517,0.23330506,68762.0,68761.0,0.002]
[1730678537717,0.028,68762.0,68761.0,0.20730506]
[1730678538618,0.028,68762.0,68761.0,0.067466]
[1730678539315,0.028,68762.0,68761.0,0.11080326]
[1730678539612,0.028,68762.0,68761.0,0.11080948]
[1730678539820,0.028,68762.0,68761.0,0.067466]
[1730678540118,0.028,68762.0,68761.0,0.20730506]
[1730678540322,0.028,68762.0,68761.0,0.2506497]
[1730678541020,0.093466,68762.0,68761.0,0.04534464]
[1730678541215,0.093466,68762.0,68761.0,0.002]
[1730678542017,0.454266,68762.0,68761.0,0.002]
[1730678542214,0.06547,68757.0,68756.0,0.04336473]
[1730678542416,0.50063906,68757.0,68745.0,0.07229304]
[1730678542624,0.50063906,68757.0,68746.0,0.065481]
[1730678542918,0.065478,68749.0,68746.0,0.065481]
[1730678543124,0.06548,68747.0,68746.0,0.065481]
[1730678543427,0.065481,68746.0,68739.0,0.07231767]
[1730678543613,0.065481,68746.0,68744.0,0.065482]
[1730678544214,0.3608,68751.0,68744.0,0.065482]
[1730678544411,0.3608,68751.0,68738.0,0.0306]
[1730678544611,0.065484,68743.0,68742.0,0.065485]
[1730678546311,0.003,68746.0,68738.0,0.17043906]
[1730678546514,0.003,68746.0,68745.0,0.065482]
[1730678547119,0.003,68746.0,68738.0,0.17043906]
[1730678547120,0.003,68746.0,68738.0,0.1029582]
[1730678547328,0.065487,68740.0,68738.0,0.096088]
[1730678547514,0.065487,68739.0,68738.0,0.096088]
[1730678548021,0.3608,68745.0,68736.0,0.0723582]
[1730678548225,0.3608,68745.0,68733.0,0.3608]
[1730678548226,0.06549,68736.0,68735.0,0.0723582]
[1730678548523,0.06549,68736.0,68735.0,0.07245946]
[1730678548726,0.065492,68735.0,68733.0,0.49875146]
[1730678549128,0.065492,68735.0,68734.0,0.07245946]
[1730678549319,0.065492,68735.0,68734.0,0.16362647]
[1730678549621,0.065492,68735.0,68734.0,0.07245946]
[1730678549810,0.065492,68735.0,68734.0,0.13795146]
[1730678550009,0.005,68736.0,68733.0,0.43325946]
[1730678550209,0.065492,68734.0,68733.0,0.43325946]
[1730678550614,0.065492,68734.0,68733.0,0.3608]
[1730678552116,0.065492,68734.0,68733.0,0.3618]
[1730678552814,0.073492,68734.0,68733.0,0.3618]
[1730678554224,0.070492,68734.0,68733.0,0.3608]
[1730678555716,0.067492,68734.0,68733.0,0.3608]
[1730678555921,0.070492,68734.0,68733.0,0.3608]
[1730678556622,0.071492,68734.0,68733.0,0.4186532]
[1730678556832,0.071492,68734.0,68733.0,0.3608]
[1730678557636,0.071492,68734.0,68730.0,0.06003543]
[1730678557637,0.065495,68731.0,68730.0,0.00218223]
[1730678557821,0.56613406,68731.0,68730.0,0.00218223]
[1730678558213,0.56613406,68731.0,68721.0,0.4186532]
[1730678558413,0.065504,68722.0,68721.0,0.3608]
[1730678559937,0.065504,68722.0,68721.0,0.3618]
[1730678560723,0.065504,68722.0,68721.0,0.001]
[1730678571534,0.172864,68722.0,68721.0,0.001]
[1730678571931,0.609424,68722.0,68721.0,0.001]
[1730678574732,0.172864,68722.0,68721.0,0.001]
[1730678574930,0.609424,68722.0,68712.0,0.0578532]
[1730678575129,0.609424,68722.0,68709.0,0.0578532]
[1730678575130,0.065515,68710.0,68709.0,0.0578532]
[1730678575334,0.60799906,68710.0,68703.0,0.0578532]
[1730678575634,0.60799906,68710.0,68700.0,0.165524]
[1730678575635,0.065522,68703.0,68700.0,0.165524]
[1730678575842,0.065522,68703.0,68701.0,0.02306785]
[1730678576044,0.065522,68703.0,68701.0,0.08859085]
[1730678576345,0.065522,68703.0,68702.0,0.161623]
[1730678577131,0.066522,68703.0,68702.0,0.171623]
[1730678577332,0.20636106,68703.0,68702.0,0.1061]
[1730678577547,0.56716106,68703.0,68702.0,0.01]
[1730678578936,0.20636106,68703.0,68702.0,0.01]
[1730678579132,0.065524,68701.0,68700.0,0.1]
[1730678579343,0.001,68703.0,68702.0,0.065523]
[1730678579545,0.077522,68703.0,68702.0,0.065523]
[1730678579736,0.012,68703.0,68702.0,0.065523]
[1730678580437,0.011,68703.0,68702.0,0.065523]
[1730678580639,0.021,68703.0,68702.0,0.066523]
[1730678580844,0.436322,68703.0,68702.0,0.001]
[1730678581148,0.428322,68703.0,68702.0,0.05798486]
[1730678581345,0.3628,68703.0,68702.0,0.0579724]
[1730678581548,0.3628,68703.0,68701.0,0.0579725]
[1730678581549,0.065523,68702.0,68701.0,0.0579725]
[1730678582046,0.065523,68702.0,68701.0,0.05797088]
[1730678582237,0.065523,68702.0,68701.0,0.065524]
[1730678582432,0.065523,68702.0,68701.0,0.12348892]
[1730678582642,0.065523,68702.0,68701.0,0.065524]
[1730678583035,0.3608,68703.0,68700.0,0.1]
[1730678583346,0.3608,68703.0,68702.0,0.12349614]
[1730678583645,0.10736,68708.0,68707.0,0.065518]
[1730678583844,0.172877,68708.0,68707.0,0.05797371]
[1730678584049,0.172877,68708.0,68706.0,0.05797371]
[1730678584050,0.10736,68708.0,68706.0,0.05797371]
[1730678584250,0.065519,68706.0,68705.0,0.05797371]
[1730678585048,0.06552,68705.0,68704.0,0.05797371]
[1730678585643,0.065521,68704.0,68702.0,0.065522]
[1730678586341,0.065521,68704.0,68702.0,0.067522]
[1730678586548,0.426322,68703.0,68702.0,0.002]
[1730678586846,0.065524,68701.0,68700.0,0.1]
[1730678588251,0.439324,68701.0,68700.0,0.101]
[1730678588939,0.437324,68701.0,68700.0,0.101]
[1730678589345,0.874004,68701.0,68700.0,0.101]
[1730678589549,0.874004,68701.0,68700.0,0.102]
[1730678589550,0.886004,68701.0,68700.0,0.102]
[1730678589951,0.874004,68701.0,68700.0,0.101]
[1730678590159,0.884004,68701.0,68700.0,0.102]
[1730678593157,0.065536,68688.0,68687.0,0.05802621]
[1730678593378,0.065536,68688.0,68682.0,0.05802621]
[1730678593379,0.065537,68687.0,68682.0,0.05802621]
[1730678593543,0.20538006,68683.0,68682.0,0.05802621]
[1730678594049,0.065542,68682.0,68681.0,0.05802621]
[1730678594449,0.13983906,68683.0,68680.0,0.05802621]
[1730678594753,0.3608,68688.0,68680.0,0.19786527]
[1730678595054,0.001,68683.0,68682.0,0.065542]
[1730678595254,0.3608,68693.0,68692.0,0.065532]
[1730678595452,0.3608,68715.0,68692.0,0.3608]
[1730678595658,0.065514,68711.0,68708.0,0.065517]
[1730678595963,0.38344912,68715.0,68707.0,0.065518]
[1730678596162,0.065516,68710.0,68707.0,0.065518]
[1730678596958,0.065516,68710.0,68705.0,0.05792501]
[1730678596959,0.065516,68710.0,68708.0,0.065517]
[1730678597548,0.065516,68710.0,68708.0,0.066517]
[1730678597859,0.071516,68710.0,68708.0,0.066517]
[1730678598441,0.006,68710.0,68707.0,0.05792501]
[1730678598649,0.065517,68708.0,68707.0,0.05792501]
[1730678599059,0.065517,68708.0,68707.0,0.12344301]
[1730678600651,0.065517,68708.0,68707.0,0.065518]
[1730678601065,0.01,68710.0,68701.0,0.07246601]
[1730678601358,0.065518,68707.0,68706.0,0.05798455]
[1730678602254,0.06552,68705.0,68704.0,0.05800819]
[1730678602453,0.13983906,68705.0,68702.0,0.05800819]
[1730678602654,0.13983906,68705.0,68700.0,0.05803518]
[1730678602848,0.13983906,68705.0,68701.0,0.05803464]
[1730678603050,0.065523,68702.0,68701.0,0.05803464]
[1730678603352,0.426323,68702.0,68701.0,0.00813464]
[1730678603866,0.863003,68702.0,68701.0,0.00813464]
[1730678604252,0.426323,68702.0,68701.0,0.00813464]
[1730678604555,0.431323,68702.0,68701.0,0.00913464]
[1730678604753,0.868003,68702.0,68701.0,0.00913464]
[1730678604964,0.440323,68702.0,68701.0,0.00913464]
[1730678605666,0.46398359,68702.0,68701.0,0.00913464]
[1730678606168,0.47798359,68702.0,68701.0,0.00913464]
[1730678606660,0.200883,68702.0,68701.0,0.00913464]
[1730678607662,0.561683,68702.0,68701.0,0.00913464]
[1730678608164,0.561683,68702.0,68701.0,0.001]
[1730678609970,0.454323,68702.0,68701.0,0.001]
[1730678610167,0.093523,68702.0,68701.0,0.001]
[1730678613266,0.093523,68702.0,68701.0,0.066524]
[1730678613460,0.028,68702.0,68701.0,0.066524]
[1730678614155,0.093523,68702.0,68701.0,0.066524]
[1730678615478,0.093523,68702.0,68701.0,0.001]